bitfinex/quotes_SOLUSD_20250918
["timestamp","ask_amount","ask_price","bid_price","bid_amount"]
[1758196314635,82.05789694,246.02,246.01,0.03]
[1758196318741,79.76511389,246.02,246.01,0.03]
[1758196319323,82.05789694,246.02,246.01,0.03]
[1758196319506,48.58511389,246.02,246.01,0.03]
[1758196319713,46.44329752,246.02,246.01,0.03]
[1758196319929,47.10837706,246.02,246.01,0.03]
[1758196320437,44.81559401,246.02,246.01,0.03]
[1758196320614,47.10837706,246.02,246.01,0.03]
[1758196321119,47.79837706,246.02,246.01,0.03]
[1758196321436,47.10837706,246.02,246.01,0.03]
[1758196322314,31.22,246.02,246.01,0.16]
[1758196323508,31.22,246.02,246.01,4.22487541]
[1758196323714,0.06,246.02,246.01,4.22487541]
[1758196327624,0.06,246.02,246.01,4.09487541]
[1758196328048,0.06,246.02,246.01,0.03]
[1758196329527,2.35278305,246.02,246.01,0.03]
[1758196331752,3.06278305,246.02,246.01,0.03]
[1758196332250,2.35278305,246.02,246.01,0.03]
[1758196332836,3.06278305,246.02,246.01,0.03]
[1758196333558,2.35278305,246.02,246.01,0.03]
[1758196335742,0.06,246.02,246.01,0.03]
[1758196337755,1.52833634,246.02,246.01,0.03]
[1758196338258,0.06,246.02,246.01,0.03]
[1758196338451,2.23833634,246.02,246.01,0.03]
[1758196339152,0.06,246.02,246.01,0.03]
[1758196342955,0.77,246.02,246.01,0.03]
[1758196349478,14.36559401,246.02,246.01,0.03]
[1758196349771,15.83393035,246.02,246.01,0.03]
[1758196350077,14.36559401,246.02,246.01,0.03]
[1758196352175,15.83393035,246.02,246.01,0.03]
[1758196366393,19.89864053,246.02,246.01,0.03]
[1758196366688,20.18296367,246.02,246.01,0.03]
[1758196367285,51.30296367,246.02,246.01,0.03]
[1758196383805,47.23825349,246.02,246.01,0.03]
[1758196384205,51.30296367,246.02,246.01,0.03]
[1758196384789,51.28296367,246.02,246.01,0.03]
[1758196385001,20.16296367,246.02,246.01,0.03]
[1758196385309,51.28296367,246.02,246.01,0.03]
[1758196386510,49.81462733,246.02,246.01,0.03]
[1758196386708,51.28296367,246.02,246.01,0.03]
[1758196395914,52.10992094,246.02,246.01,0.03]
[1758196399214,39.87991715,245.99,245.98,0.03]
[1758196399524,75.59050437,245.99,245.98,0.03]
[1758196399916,77.90853913,245.99,245.98,0.03]
[1758196400290,81.97374503,245.99,245.98,0.03]
[1758196403020,13.87991715,245.98,245.96,0.03]
[1758196403206,180.59050437,245.97,245.96,0.03]
[1758196403398,181.28050437,245.97,245.96,0.03]
[1758196403726,185.3482015,245.97,245.96,0.03]
[1758196403900,180.75761428,245.97,245.96,0.03]
[1758196404099,185.3482015,245.97,245.96,0.03]
[1758196404294,189.41373794,245.97,245.96,0.03]
[1758196409013,58.41373794,245.97,245.96,0.03]
[1758196409214,58.43373794,245.97,245.96,0.03]
[1758196411025,13.87991715,245.96,245.95,0.03]
[1758196411238,16.17521076,245.96,245.95,0.03]
[1758196411613,16.86521076,245.96,245.95,0.03]
[1758196412230,33.14266428,245.96,245.95,0.03]
[1758196412526,26.0,245.93,245.79,26.0]
[1758196412822,2.29529361,245.87,245.79,26.0]
[1758196413007,31.14,245.86,245.79,26.0]
[1758196413703,31.14,245.86,245.8,4.06834825]
[1758196415021,31.14,245.86,245.8,14.23921887]
[1758196416429,31.14,245.86,245.8,4.06834825]
[1758196417118,31.14,245.86,245.8,14.23921887]
[1758196420431,31.14,245.85,245.8,14.23921887]
[1758196421513,31.14,245.84,245.8,14.23921887]
[1758196422234,31.14,245.85,245.8,14.23921887]
[1758196422438,2.29529361,245.87,245.8,14.23921887]
[1758196422737,31.14,245.86,245.8,14.23921887]
[1758196424314,31.14,245.85,245.8,14.23921887]
[1758196428948,31.86,245.85,245.8,14.23921887]
[1758196429310,31.14,245.85,245.8,14.23921887]
[1758196429590,31.86,245.85,245.8,14.23921887]
[1758196430865,34.15529361,245.85,245.8,14.23921887]
[1758196431149,34.21529361,245.85,245.8,14.23921887]
[1758196433548,2.29529361,245.83,245.79,0.03]
[1758196433851,0.72,245.84,245.79,0.03]
[1758196434047,3.01529361,245.83,245.79,0.03]
[1758196436148,0.72,245.83,245.79,0.03]
[1758196436349,3.01529361,245.83,245.79,0.03]
[1758196436832,0.71,245.82,245.79,0.03]
[1758196437649,31.91,245.85,245.79,0.03]
[1758196437848,31.12,245.84,245.79,0.03]
[1758196438028,31.83,245.84,245.79,0.03]
[1758196438225,0.71,245.83,245.79,0.03]
[1758196439353,0.06,245.85,245.79,0.03]
[1758196439547,31.12,245.84,245.79,0.03]
[1758196439749,31.83,245.84,245.79,0.03]
[1758196440561,0.71,245.83,245.79,0.03]
[1758196442644,2.29529361,245.82,245.79,0.03]
[1758196442846,3.00529361,245.83,245.79,0.03]
[1758196443162,3.01529361,245.81,245.79,0.03]
[1758196443537,6.91962981,245.8,245.79,0.03]
[1758196447668,7.63962981,245.8,245.79,0.03]
[1758196447831,6.91962981,245.8,245.79,0.03]
[1758196451460,7.63962981,245.8,245.79,0.03]
[1758196453443,6.91962981,245.8,245.79,0.03]
[1758196454954,7.63962981,245.8,245.79,0.03]
[1758196463063,6.91962981,245.8,245.79,26.03]
[1758196463580,0.06,245.83,245.79,57.15]
[1758196463756,0.06,245.83,245.82,26.0]
[1758196464587,0.06,245.83,245.82,27.62803476]
[1758196465273,0.06,245.83,245.82,31.696052]
[1758196469480,0.06,245.85,245.82,41.86609512]
[1758196469847,0.78,245.85,245.82,41.86609512]
[1758196470050,0.78,245.85,245.82,40.23806036]
[1758196470273,0.06,245.85,245.83,1.6279685]
[1758196470867,0.06,245.85,245.82,40.23806036]
[1758196471176,1e-08,245.85,245.84,1.6279685]
[1758196471675,1e-08,245.85,245.84,32.7479685]
[1758196472084,1e-08,245.85,245.84,36.8156548]
[1758196474690,1e-08,245.86,245.84,36.8156548]
[1758196474976,0.06,245.88,245.87,26.0]
[1758196474977,1e-08,245.88,245.87,26.0]
[1758196475184,1e-08,245.88,245.86,31.12]
[1758196476384,1e-08,245.88,245.87,1.97062197]
[1758196476758,0.75,245.9,245.87,1.97062197]
[1758196476759,1e-08,245.9,245.89,26.0]
[1758196477083,0.69000001,245.9,245.89,26.0]
[1758196477590,0.69000001,245.9,245.89,27.62763728]
[1758196478789,0.69000001,245.9,245.89,31.69449644]
[1758196481779,0.69000001,245.9,245.82,40.33971637]
[1758196481780,2.16062198,245.9,245.84,67.28904794]
[1758196482087,2.16062198,245.9,245.84,68.91695018]
[1758196482088,2.16062197,245.89,245.84,68.91695018]
[1758196482290,0.69,245.88,245.84,68.91695018]
[1758196482472,0.69,245.87,245.84,68.91695018]
[1758196482786,0.69,245.86,245.84,72.98463648]
[1758196484174,0.69,245.85,245.84,72.98463648]
[1758196485085,0.69,245.85,245.84,41.86463648]
[1758196485790,0.69,245.85,245.84,31.69558854]
[1758196485995,0.69,245.85,245.84,4.0676863]
[1758196486202,0.69,245.85,245.82,4.06801724]
[1758196486376,0.69,245.84,245.82,5.696052]
[1758196486577,0.69,245.83,245.82,5.696052]
[1758196487782,0.69,245.83,245.82,4.06801724]
[1758196492293,0.69,245.85,245.82,14.23806036]
[1758196492499,0.06,245.86,245.82,14.23806036]
[1758196492500,0.69,245.84,245.82,14.23806036]
[1758196493002,0.06,245.86,245.82,14.23806036]
[1758196493171,0.75,245.86,245.82,14.23806036]
[1758196493377,0.75,245.86,245.82,45.35806036]
[1758196493609,0.06,245.86,245.82,45.35806036]
[1758196493809,0.69,245.85,245.82,45.35806036]
[1758196494104,0.69,245.84,245.82,45.35806036]
[1758196495584,0.69,245.84,245.82,14.23806036]
[1758196495792,0.69,245.83,245.82,14.23806036]
[1758196497311,0.69,245.83,245.82,10.17004312]
[1758196500888,0.69,245.83,245.81,0.03]
[1758196501997,1.53062197,245.86,245.81,0.03]
[1758196502204,0.68,245.82,245.81,0.03]
[1758196505411,1.53062197,245.86,245.81,0.03]
[1758196505713,0.72,245.85,245.81,0.03]
[1758196510904,2.19062197,245.85,245.81,0.03]
[1758196512119,0.72,245.85,245.81,0.03]
[1758196515013,2.19062197,245.85,245.81,0.03]
[1758196517821,0.72,245.85,245.81,0.03]
[1758196518015,2.19062197,245.85,245.81,0.03]
[1758196519600,1.47062197,245.85,245.81,0.03]
[1758196519921,2.29755932,245.85,245.81,0.03]
[1758196521404,4.06717123,245.88,245.81,0.03]
[1758196521614,2.29755932,245.85,245.81,0.03]
[1758196521811,0.72,245.84,245.81,0.03]
[1758196523708,0.72,245.83,245.81,0.03]
[1758196531343,0.72,245.82,245.81,0.03]
[1758196533844,3.01755932,245.82,245.81,0.03]
[1758196534048,0.72,245.82,245.81,0.03]
[1758196534342,3.01755932,245.82,245.81,0.03]
[1758196537843,0.72,245.82,245.81,0.03]
[1758196538040,3.01755932,245.82,245.81,0.03]
[1758196538252,0.72,245.82,245.81,0.03]
[1758196551244,14.31559401,245.82,245.81,0.03]
[1758196551443,1.68856503,245.86,245.81,0.03]
[1758196551640,0.06,245.86,245.81,0.71]
[1758196551943,0.72,245.86,245.82,1.62829985]
[1758196552770,0.72,245.86,245.83,4.06785176]
[1758196552947,0.06,245.86,245.83,4.06785176]
[1758196553143,0.06,245.86,245.83,4.74785176]
[1758196553547,0.06,245.86,245.84,4.06785176]
[1758196555040,0.06,245.86,245.85,4.06752084]
[1758196555361,0.72,245.86,245.83,4.06770428]
[1758196555742,0.72,245.86,245.83,14.91733369]
[1758196555944,0.06,245.86,245.83,14.91733369]
[1758196556144,0.73,245.86,245.83,14.91733369]
[1758196556348,0.06,245.86,245.83,14.91733369]
[1758196556851,0.06,245.86,245.83,15.62733369]
[1758196557052,0.06,245.86,245.83,25.7969631]
[1758196557942,0.06,245.86,245.84,0.71]
[1758196558350,0.06,245.86,245.83,25.0869631]
[1758196558644,0.06,245.86,245.83,25.7969631]
[1758196558855,0.06,245.86,245.85,4.06752084]
[1758196560872,0.73,245.86,245.84,4.06768256]
[1758196561569,0.06,245.86,245.84,4.06768256]
[1758196562065,0.06,245.86,245.84,14.91731197]
[1758196563664,14.27559401,245.85,245.84,10.84962941]
[1758196563863,0.68,245.85,245.82,4.78786822]
[1758196564062,0.06,245.86,245.82,14.95791134]
[1758196564265,0.06,245.86,245.82,4.06786822]
[1758196564467,0.74,245.86,245.82,4.78786822]
[1758196564771,0.74,245.86,245.82,15.66749763]
[1758196566952,0.06,245.86,245.82,15.66749763]
[1758196567667,0.06,245.86,245.83,0.72]
[1758196568061,0.06,245.86,245.84,0.72]
[1758196568460,0.06,245.86,245.85,4.78752084]
[1758196569568,0.06,245.86,245.85,4.06752084]
[1758196570776,0.06,245.86,245.84,16.27792292]
[1758196571073,0.06,245.86,245.84,4.78766223]
[1758196572585,0.06,245.86,245.84,16.99792292]
[1758196574753,0.06,245.86,245.84,17.02792292]
[1758196575879,0.06,245.86,245.85,0.72]
[1758196576587,0.06,245.86,245.85,26.72]
[1758196576889,0.06,245.86,245.85,32.41542308]
[1758196577965,0.06,245.89,245.85,42.58422519]
[1758196578163,0.06,245.89,245.86,0.72]
[1758196578876,0.06,245.89,245.87,1.62763728]
[1758196579275,0.06,245.89,245.88,4.78702456]
[1758196579694,0.06,245.89,245.88,30.78702456]
[1758196580071,0.06,245.89,245.88,32.41466184]
[1758196582682,0.06,245.89,245.88,31.69466184]
[1758196588893,0.06,245.89,245.88,32.41466184]
[1758196589198,0.06,245.89,245.88,31.69466184]
[1758196593569,0.06,245.89,245.88,32.36466184]
[1758196594196,0.06,245.89,245.88,31.69466184]
[1758196599895,0.75,245.89,245.88,31.69466184]
[1758196600203,6.28594227,245.89,245.88,1.62763728]
[1758196600401,13.59559401,245.88,245.85,0.03]
[1758196600582,1.46908311,245.87,245.85,0.03]
[1758196600781,2.15908311,245.87,245.85,0.03]
[1758196602408,0.69,245.87,245.85,0.03]
[1758196611713,0.75,245.87,245.85,0.03]
[1758196613322,31.83,245.87,245.85,0.03]
[1758196615723,13.59559401,245.86,245.85,0.03]
[1758196616210,14.29559401,245.86,245.85,0.03]
[1758196629016,18.36294941,245.86,245.85,0.03]
[1758196630194,19.83203252,245.86,245.85,0.03]
[1758196630395,20.11635566,245.86,245.85,0.03]
[1758196631114,21.74485439,245.86,245.85,0.03]
[1758196639928,22.57431112,245.86,245.85,0.03]
[1758196643333,53.65431112,245.86,245.85,0.03]
[1758196645629,53.71431112,245.86,245.85,0.03]
[1758196647020,52.08581239,245.86,245.85,0.03]
[1758196647728,18.70727255,245.86,245.85,0.03]
[1758196647931,51.38581239,245.86,245.85,0.03]
[1758196648440,52.06581239,245.86,245.85,0.03]
[1758196652247,51.38581239,245.86,245.85,0.03]
[1758196652434,20.30581239,245.86,245.85,0.03]
[1758196652624,52.09581239,245.86,245.85,0.03]
[1758196653637,49.79727255,245.86,245.85,0.03]
[1758196653813,52.09581239,245.86,245.85,0.03]
[1758196659143,75.79727255,245.86,245.85,0.03]
[1758196659439,78.09581239,245.86,245.85,0.03]
[1758196659635,79.72464268,245.86,245.85,0.03]
[1758196661545,39.59559401,245.83,245.82,0.03]
[1758196661733,75.55699683,245.83,245.82,0.03]
[1758196662050,18.47699683,245.82,245.81,0.03]
[1758196662423,27.50424925,245.82,245.8,0.03]
[1758196662740,56.24644402,245.81,245.8,0.03]
[1758196663318,62.65385512,245.81,245.8,0.03]
[1758196663644,39.87991715,245.8,245.68,4.74023236]
[1758196663825,44.47699683,245.8,245.69,0.67]
[1758196664028,44.47699683,245.8,245.7,0.67]
[1758196664029,51.84862948,245.8,245.7,0.67]
[1758196664253,29.91697773,245.8,245.71,0.67]
[1758196664542,33.98721009,245.8,245.71,0.67]
[1758196666451,33.98721009,245.8,245.72,0.67]
[1758196670322,33.98721009,245.8,245.73,0.67]
[1758196671423,26.0,245.77,245.64,10.17710535]
[1758196671627,2.29853984,245.69,245.64,10.17710535]
[1758196671949,31.1,245.68,245.64,10.17710535]
[1758196672243,39.38943788,245.68,245.65,0.67]
[1758196672452,8.28943788,245.67,245.65,0.67]
[1758196672752,8.28943788,245.67,245.65,4.74083248]
[1758196672935,8.28943788,245.67,245.66,0.67]
[1758196674657,8.28943788,245.67,245.66,4.74066677]
[1758196675223,8.28943788,245.67,245.66,30.74066677]
[1758196675737,8.28943788,245.67,245.66,4.74066677]
[1758196676460,31.1,245.74,245.69,26.0]
[1758196676746,33.06809931,245.75,245.7,4.76000407]
[1758196676947,33.06809931,245.75,245.71,0.69]
[1758196677148,1.96809931,245.73,245.71,0.69]
[1758196677748,1.96809931,245.73,245.72,4.06967279]
[1758196677942,1.96809931,245.73,245.72,4.75967279]
[1758196680836,1.96809931,245.73,245.72,30.78967279]
[1758196681534,1.96809931,245.73,245.72,34.85736006]
[1758196696974,0.69,245.78,245.72,45.03154205]
[1758196697283,0.69,245.78,245.73,31.08]
[1758196698176,0.06,245.8,245.74,14.24269553]
[1758196698379,0.69,245.77,245.74,14.24269553]
[1758196698776,0.06,245.8,245.75,0.72]
[1758196699070,0.06,245.8,245.75,31.8]
[1758196699277,0.06,245.78,245.75,31.8]
[1758196700278,0.06,245.78,245.76,4.06901041]
[1758196700871,0.69,245.77,245.76,4.06901041]
[1758196702581,0.69,245.77,245.74,10.17335395]
[1758196702777,0.69,245.76,245.74,10.17335395]
[1758196703077,0.06,245.78,245.74,10.17335395]
[1758196703078,0.69,245.75,245.74,10.17335395]
[1758196704158,0.69,245.75,245.73,4.06950718]
[1758196704461,0.69,245.74,245.73,4.06950718]
[1758196705467,0.69,245.74,245.72,0.03]
[1758196705671,15.06684502,245.73,245.72,0.03]
[1758196706077,15.75684502,245.73,245.72,0.03]
[1758196706780,19.8263522,245.73,245.72,0.03]
[1758196707285,20.11067534,245.73,245.72,0.03]
[1758196709982,16.04116816,245.73,245.72,0.03]
[1758196710185,15.75684502,245.73,245.72,0.03]
[1758196710368,14.28559401,245.73,245.72,0.03]
[1758196712985,0.69,245.73,245.72,0.03]
[1758196716686,0.7,245.75,245.72,0.03]
[1758196716882,14.29559401,245.77,245.72,0.03]
[1758196717298,0.7,245.76,245.72,0.03]
[1758196718476,0.06,245.73,245.72,0.03]
[1758196719385,0.06,245.73,245.72,0.75]
[1758196719810,0.06,245.73,245.72,0.03]
[1758196722298,0.06,245.73,245.72,0.75]
[1758196724501,0.06,245.73,245.72,4.81967279]
[1758196729494,0.06,245.76,245.72,14.99385478]
[1758196729703,0.06,245.76,245.75,26.0]
[1758196730281,0.06,245.76,245.75,26.72]
[1758196730688,0.06,245.76,245.75,57.8]
[1758196731794,0.06,245.76,245.75,61.86917599]
[1758196733197,0.06,245.78,245.75,72.04211596]
[1758196733508,0.06,245.78,245.76,0.72]
[1758196733881,0.06,245.78,245.77,4.06884485]
[1758196737694,0.06,245.78,245.77,0.69]
[1758196737894,0.06,245.78,245.76,4.06901041]
[1758196738098,0.06,245.78,245.76,4.75901041]
[1758196738698,0.06,245.78,245.77,4.06884485]
[1758196739197,0.06,245.78,245.77,35.14884485]
[1758196740806,0.06,245.78,245.77,4.75884485]
[1758196741006,0.06,245.78,245.77,35.83884485]
[1758196741630,0.06,245.78,245.76,4.06901041]
[1758196741813,0.06,245.78,245.77,31.08]
[1758196744336,0.06,245.78,245.77,35.14884485]
[1758196744630,0.06,245.78,245.77,4.06884485]
[1758196744804,0.06,245.78,245.77,35.14884485]
[1758196745005,0.06,245.78,245.77,4.06884485]
[1758196745304,0.06,245.78,245.77,35.14884485]
[1758196747207,0.06,245.78,245.77,31.06]
[1758196748207,0.06,245.78,245.77,35.12884485]
[1758196749202,0.06,245.78,245.77,4.73884485]
[1758196749420,0.06,245.8,245.79,26.0]
[1758196749616,0.06,245.8,245.79,57.06]
[1758196749818,1e-08,245.8,245.79,57.73]
[1758196750129,1e-08,245.8,245.79,59.3579685]
[1758196750796,1e-08,245.8,245.79,63.42648227]
[1758196753931,1e-08,245.81,245.79,63.71080541]
[1758196754118,1e-08,245.81,245.8,0.95432314]
[1758196754616,1e-08,245.81,245.8,2.58215914]
[1758196755313,1e-08,245.81,245.8,5.98050739]
[1758196755628,1e-08,245.81,245.8,6.65050739]
[1758196759320,0.06,245.85,245.83,26.0]
[1758196759640,0.06,245.85,245.84,31.06]
[1758196759814,0.06,245.86,245.84,31.06]
[1758196760019,0.06,245.86,245.84,32.68770351]
[1758196760337,0.06,245.86,245.84,33.35770351]
[1758196760713,0.06,245.86,245.85,31.06]
[1758196761122,0.06,245.86,245.85,35.12752084]
[1758196762338,0.74,245.86,245.85,35.12752084]
[1758196764337,0.74,245.86,245.85,4.06752084]
[1758196764515,0.74,245.86,245.85,35.12752084]
[1758196764721,0.06,245.86,245.85,35.12752084]
[1758196764942,0.74,245.86,245.85,35.12752084]
[1758196765436,0.74,245.86,245.85,36.75515812]
[1758196765630,0.06,245.86,245.85,36.75515812]
[1758196767827,0.06,245.86,245.85,5.69515812]
[1758196768228,0.06,245.86,245.85,36.75515812]
[1758196771030,0.06,245.86,245.85,37.42515812]
[1758196771350,0.06,245.86,245.85,36.75515812]
[1758196774447,0.06,245.87,245.85,36.75515812]
[1758196774644,0.06,245.89,245.88,26.0]
[1758196774836,0.06,245.89,245.88,57.06]
[1758196775443,0.76,245.89,245.88,30.06702456]
[1758196775641,0.76,245.89,245.88,62.75459561]
[1758196779161,0.76,245.89,245.88,31.69459561]
[1758196779351,0.76,245.89,245.88,62.75459561]
[1758196781651,0.06,245.89,245.88,62.75459561]
[1758196781826,0.76,245.89,245.88,62.75459561]
[1758196782027,0.76,245.89,245.88,31.69459561]
[1758196782231,0.76,245.89,245.88,62.75459561]
[1758196783550,0.06,245.89,245.88,62.75459561]
[1758196783934,0.06,245.89,245.88,31.69459561]
[1758196784960,1e-08,245.9,245.88,63.45459561]
[1758196785130,1e-08,245.9,245.89,0.7]
[1758196785335,1e-08,245.9,245.88,62.75459561]
[1758196785530,1e-08,245.9,245.88,63.45459561]
[1758196786057,1e-08,245.9,245.88,61.82702456]
[1758196786259,1e-08,245.9,245.89,1.6273724]
[1758196786960,1e-08,245.9,245.89,5.69423156]
[1758196789063,1e-08,245.9,245.89,36.73423156]
[1758196791664,1e-08,245.92,245.91,26.0]
[1758196791841,1e-08,245.92,245.91,57.04]
[1758196792361,1e-08,245.92,245.91,58.66723999]
[1758196792861,1e-08,245.92,245.91,62.73376839]
[1758196795542,1e-08,245.93,245.91,63.43376839]
[1758196796163,1e-08,245.93,245.91,61.8065284]
[1758196796362,1e-08,245.93,245.92,5.69347065]
[1758196797170,1e-08,245.93,245.92,36.73347065]
[1758196800563,0.06,246.02,245.92,36.73347065]
[1758196800764,0.7,245.97,245.95,26.0]
[1758196800961,0.06,246.02,245.96,31.04]
[1758196801150,0.06,246.02,245.96,32.66710761]
[1758196801558,0.7,245.98,245.95,26.0]
[1758196801757,0.06,246.02,245.95,26.0]
[1758196801758,0.7,245.97,245.95,26.0]
[1758196802065,0.06,246.02,245.97,1.62710761]
[1758196802273,0.06,246.02,245.97,32.66710761]
[1758196802455,0.66,245.98,245.97,36.73264405]
[1758196802781,0.66,245.98,245.97,35.10553644]
[1758196803154,0.66,245.98,245.97,1.62710761]
[1758196803363,0.66,245.98,245.94,4.06600171]
[1758196803569,0.66,245.97,245.94,4.06600171]
[1758196803773,0.66,245.96,245.94,4.06600171]
[1758196803973,0.66,245.95,245.94,4.06600171]
[1758196804490,0.66,245.95,245.93,4.06619769]
[1758196804791,0.66,245.94,245.93,4.06619769]
[1758196805559,0.66,245.94,245.93,14.23169193]
[1758196808955,0.66,245.94,245.93,45.27169193]
[1758196810293,0.66,245.96,245.93,45.30169193]
[1758196810465,0.66,245.95,245.93,45.30169193]
[1758196810669,0.2,245.99,245.93,45.30169193]
[1758196810873,0.66,245.98,245.93,45.30169193]
[1758196811078,0.66,245.97,245.93,45.30169193]
[1758196811260,0.66,245.96,245.95,4.06586704]
[1758196812684,0.66,245.96,245.95,5.69317323]
[1758196815788,0.2,245.99,245.95,5.69317323]
[1758196815995,0.66,245.98,245.95,15.85784084]
[1758196816206,0.66,245.97,245.96,31.04]
[1758196816697,0.2,245.99,245.98,26.0]
[1758196817073,0.2,245.99,245.98,57.04]
[1758196817372,0.2,245.99,245.98,58.66697525]
[1758196818582,0.2,245.99,245.98,62.73234641]
[1758196822403,0.2,245.99,245.98,31.69234641]
[1758196822583,0.2,245.99,245.98,62.73234641]
[1758196822897,0.2,245.99,245.98,31.69234641]
[1758196823098,0.86,245.99,245.98,31.69234641]
[1758196824787,0.86,245.99,245.98,27.62697525]
[1758196825298,0.86,245.99,245.93,0.03]
[1758196825503,0.66,245.98,245.93,0.03]
[1758196826195,0.66,245.98,245.95,1.62730619]
[1758196826379,0.66,245.97,245.93,4.09619769]
[1758196826698,0.66,245.96,245.94,1.62743861]
[1758196826902,0.66,245.95,245.94,1.62743861]
[1758196827278,0.66,245.95,245.93,4.09619769]
[1758196827478,0.66,245.94,245.93,4.09619769]
[1758196828299,0.66,245.94,245.93,0.03]
[1758196836502,0.68,245.96,245.93,0.03]
[1758196837206,0.88,245.99,245.93,0.7]
[1758196837387,0.88,245.99,245.93,0.03]
[1758196843784,4.94521789,245.99,245.93,0.03]
[1758196844186,0.88,245.99,245.93,0.03]
[1758196845105,4.94522377,245.99,245.93,0.03]
[1758196845308,6.41342191,245.99,245.93,0.03]
[1758196845812,13.59559401,245.98,245.93,0.03]
[1758196846411,0.68,245.97,245.93,0.03]
[1758196848916,6.21374475,245.97,245.93,0.03]
[1758196849211,1.46819814,245.96,245.93,0.03]
[1758196849422,6.21374475,245.97,245.93,0.03]
[1758196849608,0.68,245.95,245.93,0.03]
[1758196855796,17.66100463,245.98,245.93,0.03]
[1758196856004,0.68,245.94,245.93,0.03]
[1758196858321,0.72,245.97,245.93,0.03]
[1758196858614,0.72,245.96,245.93,0.03]
[1758196858791,0.72,245.95,245.93,0.03]
[1758196860221,0.72,245.98,245.93,0.03]
[1758196860423,0.06,245.97,245.95,4.06586704]
[1758196861612,0.06,245.97,245.95,4.75586704]
[1758196861809,0.06,245.97,245.96,0.69]
[1758196863032,0.06,245.97,245.96,4.75570174]
[1758196863243,0.06,245.97,245.96,30.75570174]
[1758196864601,0.2,245.99,245.96,40.91995609]
[1758196864944,0.2,245.99,245.98,26.0]
[1758196865426,0.2,245.99,245.98,26.71]
[1758196865610,0.2,245.99,245.98,31.75]
[1758196867036,0.2,245.99,245.98,35.81537116]
[1758196869922,0.92,245.99,245.98,35.10537116]
[1758196870123,0.2,245.99,245.98,35.10537116]
[1758196871130,0.2,245.99,245.98,30.06537116]
[1758196871337,0.2,245.99,245.98,4.06537116]
[1758196874327,0.92,245.99,245.98,4.06537116]
[1758196875024,0.92,245.99,245.98,30.06537116]
[1758196877939,0.92,245.99,245.98,4.06537116]
[1758196878319,0.92,245.99,245.96,14.22995609]
[1758196878525,0.72,245.98,245.96,14.22995609]
[1758196878728,0.72,245.97,245.96,14.22995609]
[1758196878932,0.72,245.97,245.96,4.06570174]
[1758196879826,0.72,245.97,245.95,0.03]
[1758196884619,3.01534545,245.97,245.95,0.03]
[1758196885634,2.29534545,245.96,245.95,0.03]
[1758196886146,3.01534545,245.96,245.95,0.03]
[1758196892959,0.72,245.96,245.95,0.03]
[1758196893139,3.01534545,245.96,245.95,0.03]
[1758196895154,20.96096434,245.96,245.95,0.03]
[1758196898051,21.46096434,245.96,245.95,0.03]
[1758196899154,17.3952626,245.96,245.95,0.03]
[1758196899341,48.4352626,245.96,245.95,0.03]
[1758196900854,52.50096434,245.96,245.95,0.03]
[1758196902734,47.7152626,245.96,245.95,0.03]
[1758196903761,48.4052626,245.96,245.95,0.03]